bitfinex/quotes_SOLUSD_20240926
["timestamp","ask_amount","ask_price","bid_price","bid_amount"]
[1727363133585,6.4792,154.34,154.3,16.2018]
[1727363133958,6.4788,154.35,154.3,22.6826]
[1727363134655,6.4793,154.34,154.3,16.2018]
[1727363134866,23.776884,154.38,154.3,16.2018]
[1727363135069,6.4792,154.34,154.3,22.6826]
[1727363135266,6.4783,154.37,154.31,1.29586269]
[1727363135573,6.4792,154.34,154.3,22.6825]
[1727363135772,20.0,154.38,154.31,7.77629834]
[1727363135981,6.4779,154.37,154.32,6.4796]
[1727363136164,6.4779,154.37,154.33,7.77522129]
[1727363136366,1.577906,154.36,154.29,6.4812]
[1727363136683,6.4796,154.33,154.29,6.4812]
[1727363136863,6.4796,154.33,154.27,16.2047]
[1727363136864,1.577906,154.32,154.27,16.2047]
[1727363137181,1.577906,154.32,154.23,32.5321566]
[1727363137182,7.684306,154.31,154.24,16.208]
[1727363137483,6.4813,154.29,154.25,1.29636439]
[1727363137672,6.4809,154.3,154.26,6.4825]
[1727363138077,6.1064,154.31,154.24,16.208]
[1727363138285,6.1064,154.31,154.24,22.6913]
[1727363138286,6.4813,154.29,154.24,22.6913]
[1727363138776,6.4818,154.28,154.24,22.6913]
[1727363139162,6.1064,154.31,154.24,22.6913]
[1727363139488,6.4813,154.29,154.24,16.208]
[1727363139664,6.4813,154.29,154.25,6.4829]
[1727363139859,6.1064,154.31,154.23,6.5974566]
[1727363139860,20.0,154.3,154.23,6.5974566]
[1727363140188,6.4828,154.26,154.23,0.1138566]
[1727363140367,37.780606,154.3,154.23,0.1138566]
[1727363140693,16.2048,154.28,154.23,0.1138566]
[1727363140988,6.4831,154.25,154.23,0.1138566]
[1727363141383,6.4834,154.24,154.23,0.1138566]
[1727363141758,8.061306,154.24,154.23,0.1138566]
[1727363142381,6.4846,154.21,154.15,16.2179]
[1727363142671,1.577906,154.24,154.15,16.2179]
[1727363142872,1.577906,154.24,154.13,0.1138566]
[1727363142873,6.485,154.2,154.14,6.4874]
[1727363143799,6.485,154.2,154.13,16.3332566]
[1727363143800,6.485,154.2,154.15,6.4871]
[1727363144167,6.485,154.2,154.14,6.4875]
[1727363144682,6.485,154.2,154.13,16.3332566]
[1727363144683,15.8307,154.17,154.13,0.1138566]
[1727363144873,6.4868,154.16,154.13,0.1138566]
[1727363145195,15.8307,154.17,154.13,0.1138566]
[1727363145398,22.317,154.17,154.13,0.1138566]
[1727363145570,15.8307,154.17,154.14,1.29741535]
[1727363145767,16.3711,154.22,154.13,0.1138566]
[1727363145967,6.4385,154.23,154.14,1.29696466]
[1727363146188,23.0003,154.27,154.15,20.0]
[1727363146365,23.0003,154.27,154.21,16.2109]
[1727363146571,23.0003,154.27,154.22,1.29649116]
[1727363146799,6.4812,154.3,154.23,16.2086]
[1727363146996,6.4813,154.29,154.24,6.4833]
[1727363147305,6.4818,154.28,154.23,16.2086]
[1727363147792,6.4818,154.28,154.23,22.6923]
[1727363148177,1.577906,154.27,154.2,16.2124]
[1727363148380,20.0,154.3,154.2,16.2124]
[1727363148688,6.4826,154.26,154.22,6.4841]
[1727363148892,20.0,154.3,154.2,16.2124]
[1727363149086,6.4826,154.26,154.21,7.78125212]
[1727363149287,20.0,154.3,154.22,0.12549]
[1727363149605,6.4812,154.3,154.25,6.4826]
[1727363149788,6.252,154.31,154.26,1.29634119]
[1727363150168,6.4821,154.28,154.23,6.4837]
[1727363151681,6.252,154.31,154.25,6.4828]
[1727363151889,12.7325,154.31,154.26,7.77872498]
[1727363152202,6.252,154.31,154.27,6.4821]
[1727363152369,6.252,154.31,154.26,6.4825]
[1727363152576,6.252,154.31,154.25,22.6903]
[1727363152896,7.829906,154.31,154.25,22.6903]
[1727363153099,6.252,154.31,154.25,16.2074]
[1727363153283,6.4813,154.29,154.25,16.2074]
[1727363153991,6.252,154.31,154.22,16.2102]
[1727363154376,6.4817,154.28,154.23,6.4836]
[1727363154585,6.252,154.31,154.22,16.2102]
[1727363154791,16.203,154.3,154.18,16.2138]
[1727363155106,6.483,154.25,154.2,6.485]
[1727363156083,6.4834,154.24,154.19,26.4854]
[1727363156280,23.776884,154.28,154.19,26.4854]
[1727363156493,21.577906,154.27,154.18,22.6996]
[1727363156704,6.4838,154.24,154.2,6.485]
[1727363156905,6.4838,154.24,154.21,1.29669961]
[1727363157384,6.4843,154.22,154.17,6.4861]
[1727363157591,20.0,154.27,154.18,1.29684623]
[1727363157900,20.0,154.3,154.18,1.29684623]
[1727363158082,6.4825,154.26,154.21,22.6954]
[1727363158402,6.4825,154.26,154.22,6.4842]
[1727363158787,20.0,154.3,154.21,16.2109]
[1727363158980,6.4823,154.27,154.22,1.42191404]
[1727363159186,6.4823,154.27,154.22,6.60959]
[1727363160898,6.252,154.31,154.25,6.4829]
[1727363161101,6.4804,154.31,154.27,6.482]
[1727363161593,6.4804,154.31,154.26,6.60799]
[1727363162484,1.577906,154.34,154.23,26.73478]
[1727363162485,6.4817,154.28,154.23,26.73478]
[1727363162680,16.1996,154.33,154.24,6.4833]
[1727363162900,23.776884,154.3,154.18,6.6456]
[1727363163182,17.781806,154.29,154.19,16.2132]
[1727363163410,6.4841,154.23,154.19,16.2132]
[1727363163712,6.4837,154.24,154.19,22.6983]
[1727363163968,6.4843,154.22,154.17,6.4862]
[1727363164114,15.8873,154.26,154.16,16.2163]
[1727363164115,6.4839,154.23,154.19,6.4854]
[1727363164412,6.4839,154.23,154.18,6.4858]
[1727363164800,6.4843,154.22,154.18,6.4858]
[1727363164998,6.4843,154.22,154.16,16.2163]
[1727363164999,1.577906,154.25,154.16,6.4864]
[1727363165219,6.487,154.16,154.13,0.1138566]
[1727363165516,6.4867,154.16,154.13,0.1138566]
[1727363165902,6.4876,154.14,154.13,0.1138566]
[1727363166611,43.776884,154.21,154.13,0.1138566]
[1727363166816,20.0,154.21,154.13,0.1138566]
[1727363166990,23.776884,154.2,154.13,0.1138566]
[1727363167193,16.2108,154.22,154.13,0.1138566]
[1727363167409,23.776884,154.24,154.13,0.1138566]
[1727363167410,23.776884,154.24,154.13,1.41105002]
[1727363167587,23.776884,154.25,154.14,16.2185]
[1727363167791,32.0944,154.26,154.16,6.4867]
[1727363167792,6.485,154.21,154.16,6.4867]
[1727363168024,6.4851,154.2,154.15,6.73808]
[1727363168197,6.4845,154.22,154.16,6.4866]
[1727363168387,6.4845,154.22,154.17,1.29695842]
[1727363168694,6.4845,154.22,154.17,7.78315842]
[1727363169105,32.0944,154.26,154.18,6.4858]
[1727363169106,6.4838,154.23,154.18,6.4858]
[1727363169308,6.4838,154.23,154.17,1.29695842]
[1727363169309,6.4842,154.22,154.17,6.4863]
[1727363169493,6.4846,154.21,154.16,22.7024]
[1727363169811,6.4842,154.22,154.17,6.4863]
[1727363170121,6.4839,154.23,154.18,6.4857]
[1727363170611,6.4847,154.21,154.16,22.7026]
[1727363171321,1.577906,154.25,154.16,22.7026]
[1727363171533,23.776884,154.25,154.17,6.4863]
[1727363171699,16.2092,154.24,154.15,0.25098]
[1727363172015,6.4858,154.19,154.14,6.4871]
[1727363172399,6.4858,154.19,154.15,6.4871]
[1727363172596,6.4858,154.19,154.14,26.4875]
[1727363173013,6.4875,154.15,154.13,0.5678616]
[1727363173215,6.4876,154.14,154.13,0.5678616]
[1727363173900,6.4862,154.18,154.13,7.0557616]
[1727363174105,6.4859,154.18,154.14,7.78477234]
[1727363174319,6.3798,154.2,154.14,1.29727234]
[1727363174519,6.485,154.21,154.14,17.51567234]
[1727363174721,15.4512,154.22,154.14,16.2184]
[1727363174906,6.4847,154.21,154.16,6.4867]
[1727363175606,6.4847,154.21,154.17,1.29705338]
[1727363175924,6.3798,154.25,154.17,1.29705338]
[1727363176123,6.4833,154.25,154.2,6.4849]
[1727363176427,6.4833,154.25,154.21,1.29670893]
[1727363176828,6.2589,154.29,154.22,16.21]
[1727363177032,15.0001,154.32,154.3,6.4808]
[1727363177236,6.0551,154.34,154.28,16.2034]
[1727363177527,6.4804,154.32,154.26,6.4821]
[1727363177910,6.4804,154.32,154.25,16.2073]
[1727363178228,6.4804,154.31,154.26,6.4825]
[1727363178412,1.577906,154.31,154.22,20.0]
[1727363178730,1.577906,154.31,154.23,0.12549]
[1727363178962,1.577906,154.31,154.22,20.0]
[1727363179248,6.481,154.3,154.24,6.4833]
[1727363179749,6.4805,154.31,154.26,6.4825]
[1727363180048,1.577906,154.32,154.25,6.4829]
[1727363180253,6.4809,154.3,154.25,6.4829]
[1727363181250,1.577906,154.29,154.24,16.2083]
[1727363181548,20.0,154.33,154.18,38.9325]
[1727363181549,6.4825,154.27,154.2,16.2121]
[1727363181733,6.4825,154.27,154.21,20.0]
[1727363181937,20.0,154.31,154.22,17.50609719]
[1727363182124,6.4809,154.3,154.25,6.4829]
[1727363182664,6.4809,154.3,154.26,1.29636017]
[1727363183156,6.0551,154.34,154.26,1.29636017]
[1727363183321,6.48,154.32,154.27,6.4817]
[1727363183520,6.4796,154.33,154.28,7.77757289]
[1727363183955,1.577906,154.32,154.26,16.2056]
[1727363184138,6.4808,154.3,154.26,16.2056]
[1727363184538,1.577906,154.32,154.23,0.12549]
[1727363185136,6.4818,154.28,154.23,6.60919]
[1727363185339,1.577906,154.32,154.23,6.60919]
[1727363185529,1.577906,154.32,154.18,55.1452]
[1727363185530,6.4834,154.24,154.18,55.1452]
[1727363185730,6.483,154.25,154.2,6.485]
[1727363185931,15.8929,154.27,154.18,16.214]
[1727363186224,1.577906,154.26,154.15,16.2175]
[1727363186456,6.4843,154.22,154.18,6.4859]
[1727363186675,6.4838,154.24,154.18,6.4859]
[1727363186951,6.4849,154.21,154.17,16.2151]
[1727363187153,6.4849,154.21,154.16,6.4867]
[1727363187154,6.4851,154.2,154.15,6.4871]
[1727363187649,1.577906,154.19,154.15,0.1050839]
[1727363187861,6.4855,154.19,154.15,0.1050839]
[1727363188347,6.4855,154.19,154.15,6.5921839]
[1727363188554,16.2113,154.22,154.15,6.5921839]
[1727363188555,6.4851,154.2,154.15,6.5921839]
[1727363188934,6.4855,154.19,154.15,0.1050839]
[1727363189341,20.0,154.23,154.15,0.1050839]
[1727363189342,1.577906,154.18,154.15,0.1050839]
[1727363189646,6.4867,154.16,154.15,0.1050839]
[1727363190755,50.263584,154.16,154.15,0.1050839]
[1727363190957,56.666384,154.16,154.15,0.1050839]
[1727363191164,6.4876,154.14,154.13,0.4627777]
[1727363191447,6.4876,154.14,154.1,0.0758817]
[1727363191448,26.4888,154.11,154.1,0.0758817]
[1727363192663,15.3059,154.17,154.1,0.0758817]
[1727363192954,15.3059,154.17,154.11,6.4887]
[1727363193334,15.3059,154.17,154.1,22.7878817]
[1727363193550,15.3059,154.17,154.1,16.2986817]
[1727363193743,15.3059,154.17,154.12,6.4884]
[1727363193957,15.3059,154.17,154.13,1.297392]
[1727363194156,15.3059,154.17,154.12,6.4884]
[1727363194462,8.064606,154.16,154.1,22.7874817]
[1727363194672,15.3059,154.17,154.12,6.4883]
[1727363194857,6.4862,154.18,154.1,16.2986817]
[1727363194858,6.4854,154.2,154.14,6.4875]
[1727363195176,6.4855,154.19,154.13,22.708]
[1727363195673,6.4859,154.18,154.13,22.708]
[1727363196046,6.4854,154.2,154.14,7.78484976]
[1727363196245,15.3107,154.21,154.15,6.4871]
[1727363196469,26.4851,154.2,154.15,6.4871]
[1727363197167,15.3107,154.21,154.16,17.51349418]
[1727363197474,12.887,154.22,154.17,7.78329853]
[1727363197670,6.4028,154.22,154.17,7.78329853]
[1727363197855,6.4838,154.23,154.17,7.78329853]
[1727363198052,38.0386,154.26,154.17,6.4863]
[1727363198374,38.0386,154.26,154.16,22.7029]
[1727363198548,20.0,154.25,154.16,22.7029]
[1727363198753,20.0,154.23,154.16,22.7029]
[1727363198969,21.577906,154.23,154.16,22.7029]
[1727363199170,20.0,154.23,154.16,22.7029]
[1727363199353,6.4837,154.24,154.19,6.4854]
[1727363199558,6.4842,154.23,154.18,6.4858]
[1727363200167,6.4846,154.21,154.16,16.2163]
[1727363200362,6.4846,154.21,154.17,1.29705171]
[1727363200711,6.4833,154.25,154.19,6.4854]
[1727363200975,21.8313,154.26,154.2,1.29688133]
[1727363201279,0.3489211,154.3,154.27,6.4817]
[1727363201461,0.3489211,154.3,154.26,6.4824]
[1727363201667,0.3489211,154.3,154.26,7.77866404]
[1727363202269,0.3489211,154.3,154.27,6.4821]
[1727363202466,0.3489211,154.3,154.28,1.29617061]
[1727363202759,0.3489211,154.3,154.25,16.2066]
[1727363202968,6.4816,154.29,154.25,16.2066]
[1727363203175,0.3489211,154.3,154.25,17.50297544]
[1727363203379,0.3489211,154.3,154.28,6.4816]
[1727363203581,0.3489211,154.3,154.29,1.29612069]
[1727363203952,0.3489211,154.3,154.29,7.77742444]
[1727363204582,0.3489211,154.3,154.29,1.29612444]
[1727363204758,0.3489211,154.3,154.28,22.6857]
[1727363204957,0.3489211,154.3,154.29,1.01530776]
[1727363205680,0.3489211,154.3,154.28,22.6857]
[1727363206061,0.3489211,154.3,154.26,6.4825]
[1727363206661,0.3489211,154.3,154.27,1.29617775]
[1727363207267,6.4815,154.29,154.25,16.207]
[1727363207578,0.3489211,154.3,154.25,16.207]
[1727363207882,6.4813,154.29,154.25,16.207]
[1727363208397,6.4813,154.29,154.26,1.29630441]
[1727363208555,6.4813,154.29,154.25,22.6899]
[1727363208764,6.4817,154.28,154.22,16.2103]
[1727363209065,6.4817,154.28,154.23,6.4837]
[1727363209284,6.4821,154.27,154.22,16.2103]
[1727363209475,6.4826,154.26,154.22,16.2103]
[1727363209666,0.3489211,154.3,154.23,1.29657477]
[1727363209882,6.4821,154.27,154.23,1.29657477]
[1727363210262,6.4818,154.28,154.23,1.29657477]
[1727363210581,6.4818,154.28,154.24,6.4832]
[1727363210781,6.4818,154.28,154.25,1.2964053]
[1727363210980,0.3489211,154.3,154.26,6.4821]
[1727363211382,6.8298211,154.3,154.26,6.4821]
[1727363211757,6.8298211,154.3,154.27,1.29622222]
[1727363211981,0.3489211,154.3,154.27,7.77832222]
[1727363212182,0.3489211,154.3,154.26,6.60789]
[1727363212693,6.8299211,154.3,154.25,22.6901]
[1727363213063,6.8299211,154.3,154.26,1.29624657]
[1727363213385,6.8299211,154.3,154.26,7.77864657]
[1727363213773,0.3489211,154.3,154.26,7.77864657]
[1727363214189,0.3489211,154.3,154.28,6.4814]
[1727363214382,0.3489211,154.3,154.29,7.77730918]
[1727363214758,0.3489211,154.3,154.29,6.4813]
[1727363214962,0.3489211,154.3,154.28,6.4816]
[1727363215187,0.3489211,154.3,154.29,1.29605854]
[1727363216094,0.3489211,154.3,154.29,1.29602014]
[1727363216383,0.3489211,154.3,154.28,6.4816]
[1727363216885,0.3489211,154.3,154.29,8.0282483]
[1727363217088,0.3489211,154.3,154.29,28.0282483]
[1727363217393,0.3489211,154.3,154.29,51.8051323]
[1727363217566,0.3489211,154.3,154.29,28.0282483]
[1727363217766,0.3489211,154.3,154.29,26.73228]
[1727363219586,0.3489211,154.3,154.29,80.88196315]
[1727363219777,0.4627777,154.36,154.3,24.027864]
[1727363220094,0.4627777,154.36,154.35,6.60419]
[1727363220562,0.4627777,154.36,154.35,6.72968]
[1727363220764,0.4248028,154.42,154.41,6.4762]
[1727363220971,0.4248028,154.42,154.41,8.02209335]
[1727363221199,0.4248028,154.42,154.37,16.1945]
[1727363221368,0.4248028,154.42,154.39,6.477]
[1727363221566,0.4248028,154.42,154.4,1.29505265]
[1727363222485,0.4248028,154.42,154.39,6.477]
[1727363222693,0.4248028,154.42,154.41,1.29507777]
[1727363222893,0.3565135,154.42,154.41,1.29507777]
[1727363223071,0.3565135,154.42,154.37,16.1945]
[1727363223268,6.8326135,154.42,154.38,1.29523616]
[1727363223489,0.3565135,154.42,154.38,7.77263616]
[1727363223687,0.3565135,154.42,154.38,1.29523616]
[1727363224000,0.3565135,154.42,154.4,6.4766]
[1727363224193,0.3565135,154.42,154.39,6.477]
[1727363224401,0.3565135,154.42,154.41,6.60169]
[1727363224704,0.3565135,154.42,154.41,6.72718]
[1727363225076,0.3565135,154.42,154.4,0.12549]
[1727363225284,0.3565135,154.42,154.41,6.4762]
[1727363225997,0.3565135,154.42,154.41,6.72718]
[1727363226304,0.3565135,154.42,154.41,51.79901864]
[1727363227302,0.3565135,154.42,154.41,50.504064]
[1727363227499,0.3565135,154.42,154.41,51.79868867]
[1727363228210,0.1138566,154.46,154.45,50.502364]
[1727363228414,0.1138566,154.46,154.45,99.00178894]
[1727363228587,0.3677992,154.48,154.47,50.376074]
[1727363229213,0.3677992,154.48,154.47,51.67013385]
[1727363229400,0.0758817,154.51,154.48,43.902374]
[1727363229623,0.0758817,154.51,154.5,97.58008748]
[1727363229907,0.0758817,154.51,154.5,98.87379102]
[1727363230280,0.0758817,154.51,154.5,50.500264]
[1727363230482,0.0758817,154.51,154.5,51.79405362]
[1727363230698,0.0758817,154.51,154.5,51.79404938]
[1727363231003,0.0758817,154.51,154.5,97.70557748]
[1727363231599,0.4816558,154.55,154.5,97.70557748]
[1727363231600,0.4816558,154.55,154.54,50.498664]
[1727363231806,0.4816558,154.55,154.54,51.79212644]
[1727363232300,0.4816558,154.55,154.54,50.498664]
[1727363232999,0.4816558,154.55,154.54,51.79213154]
[1727363234000,0.0758817,154.6,154.59,50.496564]
[1727363234199,0.0758817,154.6,154.59,51.78961902]
[1727363234403,0.0758817,154.6,154.59,50.496564]
[1727363234582,0.0758817,154.6,154.59,20.25098]
[1727363235012,0.0758817,154.6,154.59,26.71968]
[1727363235480,0.0758817,154.6,154.59,51.78968645]
[1727363235703,0.0758817,154.6,154.59,50.496564]
[1727363235995,0.0758817,154.6,154.59,26.59419]
[1727363236188,0.0758817,154.6,154.58,16.1723]
[1727363236901,0.0758817,154.6,154.58,22.6413]
[1727363237096,0.0758817,154.6,154.56,6.4696]
[1727363237292,0.0758817,154.6,154.58,6.4688]
[1727363237485,0.0758817,154.6,154.59,8.01304559]
[1727363237803,0.0758817,154.6,154.59,6.71968]
[1727363238503,0.0758817,154.6,154.59,51.78983968]
[1727363239212,0.0758817,154.6,154.59,51.78969076]
[1727363239894,0.0758817,154.6,154.59,50.496564]
[1727363240489,0.0758817,154.6,154.59,51.78944349]
[1727363240694,0.0758817,154.6,154.59,50.496564]
[1727363242100,0.0758817,154.6,154.59,51.78946168]
[1727363242297,0.3677992,154.62,154.61,6.4678]
[1727363242508,0.1138566,154.64,154.63,50.494864]
[1727363242751,0.1138566,154.64,154.63,79.43611662]
[1727363243515,0.1138566,154.64,154.63,80.72869547]
[1727363243712,0.1138566,154.64,154.63,79.43611662]
[1727363245423,0.1138566,154.64,154.63,80.72887351]
[1727363245915,0.0758817,154.7,154.63,80.72887351]
[1727363245916,0.0758817,154.7,154.69,6.71548]
[1727363246106,0.0758817,154.7,154.69,51.78466429]
[1727363246424,0.0758817,154.7,154.69,28.00778029]
[1727363246595,0.0758817,154.7,154.69,51.78466429]
[1727363247089,0.4109292,154.72,154.71,50.491564]
[1727363247421,0.4109292,154.72,154.71,80.72492867]
[1727363247623,0.0758817,154.79,154.71,80.72492867]
[1727363247624,0.0758817,154.79,154.73,26.71378]
[1727363247830,0.0758817,154.79,154.74,44.027864]
[1727363248118,0.0758817,154.79,154.78,50.488564]
[1727363248607,0.0758817,154.79,154.78,51.78006423]
[1727363248918,0.0758817,154.79,154.78,26.71168]
[1727363249519,0.0758817,154.79,154.78,20.12549]
[1727363250024,0.0758817,154.79,154.78,26.71168]
[1727363250391,0.0758817,154.79,154.78,0.12549]
[1727363250592,6.4615,154.77,154.68,61.26475262]
[1727363250807,22.0672,154.78,154.73,6.4628]
[1727363251021,6.4613,154.77,154.72,6.4632]
[1727363251319,15.6064,154.78,154.75,6.4619]
[1727363251908,0.0758817,154.79,154.77,6.4611]
[1727363252105,0.0758817,154.79,154.78,27.87803894]
[1727363252418,0.0758817,154.79,154.78,50.488564]
[1727363252617,0.0758817,154.79,154.78,20.25098]
[1727363252817,0.0758817,154.79,154.75,20.25098]
[1727363253020,6.461,154.78,154.73,22.6196]
[1727363253219,15.7895,154.78,154.7,16.16]
[1727363253531,6.1607,154.77,154.72,16.1573]
[1727363253705,15.7895,154.78,154.69,28.94125262]
[1727363254327,15.7895,154.78,154.74,22.6178]
[1727363254515,15.7895,154.78,154.74,16.1555]
[1727363254713,6.4615,154.77,154.73,20.0]
[1727363255013,6.4615,154.77,154.73,26.4628]
[1727363255319,15.7895,154.78,154.74,6.4623]
[1727363255628,15.7895,154.78,154.73,16.1563]
[1727363255923,15.7895,154.78,154.75,0.12549]
[1727363256315,15.7895,154.78,154.76,0.12549]
[1727363256625,15.7895,154.78,154.74,6.58789]
[1727363256825,15.7895,154.78,154.63,60.94803898]
[1727363257129,20.0,154.76,154.67,16.1629]
[1727363257307,20.0,154.76,154.64,16.1664]
[1727363257308,16.1578,154.73,154.64,16.1664]
[1727363257508,6.4644,154.7,154.65,6.4658]
[1727363257701,6.4637,154.71,154.66,6.4656]
[1727363258518,36.1543,154.76,154.64,16.1664]
[1727363258833,29.3641,154.69,154.64,22.6329]
[1727363259412,22.8995,154.69,154.65,6.4661]
[1727363260113,22.8995,154.69,154.6,54.69825107]
[1727363260318,22.8995,154.69,154.68,6.4649]
[1727363260625,22.8995,154.69,154.68,7.75773316]
[1727363260824,22.8995,154.69,154.68,1.29283316]
[1727363261131,22.8995,154.69,154.68,6.59039]
[1727363261335,29.3624,154.73,154.68,6.71588]
[1727363262010,22.8995,154.73,154.68,0.12549]
[1727363262205,6.4636,154.72,154.67,22.6284]
[1727363262415,29.3624,154.73,154.68,6.4647]
[1727363262608,22.8995,154.73,154.69,17.45310322]
[1727363262816,22.8995,154.73,154.7,0.12549]
[1727363263019,22.8995,154.73,154.69,22.625]
[1727363263403,6.461,154.78,154.73,6.4625]
[1727363263639,6.461,154.78,154.71,16.1582]
[1727363263640,6.462,154.75,154.71,22.6218]
[1727363263830,1.577906,154.77,154.6,54.69825107]
[1727363263831,6.4624,154.74,154.69,6.71528]
[1727363264132,0.0758817,154.79,154.69,0.25098]
[1727363264437,6.4607,154.78,154.72,16.1572]
[1727363264640,6.4607,154.78,154.73,7.75486392]
[1727363264927,6.4615,154.77,154.72,22.6203]
[1727363265125,6.4619,154.76,154.73,1.29232935]
[1727363265337,1.577906,154.75,154.67,32.3264]
[1727363265510,1.6537877,154.79,154.63,32.3343]
[1727363265711,30.433964,154.78,154.67,6.4652]
[1727363266016,15.6575,154.71,154.67,6.4651]
[1727363266323,15.6575,154.71,154.68,7.75767352]
[1727363266525,15.6575,154.71,154.68,6.4649]
[1727363266968,15.6575,154.71,154.7,6.4641]
[1727363267131,15.6575,154.71,154.69,22.6253]
[1727363267505,16.6173,154.75,154.72,6.4632]
[1727363267711,16.6173,154.75,154.73,1.29235728]
[1727363268008,12.8669,154.78,154.75,6.4619]
[1727363268009,6.4061,154.78,154.75,6.4619]
[1727363268319,6.4061,154.78,154.75,16.1543]
[1727363268516,0.0758817,154.79,154.76,1.41751415]
[1727363268722,0.0758817,154.79,154.78,6.58619]
[1727363270218,0.0758817,154.79,154.78,7.87801708]
[1727363270425,0.0758817,154.79,154.78,6.71168]
[1727363270815,0.0758817,154.79,154.78,8.00346049]
[1727363271218,0.0758817,154.79,154.78,28.00346049]
[1727363271520,0.0758817,154.79,154.78,0.12549]
[1727363272025,0.0758817,154.79,154.77,16.1524]
[1727363272329,0.0758817,154.79,154.78,50.488564]
[1727363273428,0.0758817,154.79,154.78,1.29165571]
[1727363273638,0.0758817,154.79,154.77,16.1524]
[1727363274007,0.0758817,154.79,154.78,1.29183293]
[1727363274234,0.0758817,154.79,154.71,32.3176]
[1727363274538,0.0758817,154.79,154.78,6.4607]
[1727363274713,0.0758817,154.79,154.78,7.7525074]
[1727363275039,0.0758817,154.79,154.78,6.4607]
[1727363275443,0.0758817,154.79,154.78,6.58619]
[1727363275813,0.0758817,154.79,154.78,0.12549]
[1727363276019,0.0758817,154.79,154.77,6.58649]
[1727363276523,0.0758817,154.79,154.75,6.4619]
[1727363276709,0.0758817,154.79,154.75,16.1544]
[1727363277036,0.0758817,154.79,154.78,6.4607]
[1727363277421,0.0758817,154.79,154.78,7.75248872]
[1727363278022,0.0758817,154.79,154.78,51.78035272]
[1727363278938,0.0758817,154.79,154.78,50.488564]
[1727363279318,0.0758817,154.79,154.78,6.4607]
[1727363279526,0.0758817,154.79,154.77,16.1524]
[1727363279527,0.0758817,154.79,154.77,22.6134]
[1727363280140,0.0758817,154.79,154.74,16.1557]
[1727363280453,6.3003,154.78,154.71,16.1586]
[1727363280624,6.3003,154.78,154.72,1.29232772]
[1727363280940,12.7611,154.78,154.68,1.29230004]
[1727363281137,6.3003,154.78,154.74,6.4624]
[1727363281338,6.3003,154.78,154.75,1.29215626]
[1727363281540,6.3003,154.78,154.72,16.1574]
[1727363281541,6.4619,154.76,154.72,16.1574]
[1727363281743,6.4619,154.76,154.71,6.4636]
[1727363281744,7.878206,154.78,154.7,6.4637]
[1727363281918,7.878206,154.78,154.69,16.1607]
[1727363281919,21.577906,154.77,154.69,16.1607]
[1727363282123,6.4624,154.75,154.7,1.29252359]
[1727363282319,20.0,154.77,154.7,1.29252359]
[1727363282541,23.902374,154.75,154.56,2.591249]
[1727363282744,6.4645,154.7,154.64,6.4664]
[1727363283321,6.4637,154.71,154.66,6.4657]
[1727363283525,6.4637,154.71,154.63,16.1675]
[1727363283740,6.4642,154.7,154.65,6.4661]
[1727363283937,1.577906,154.73,154.63,16.1675]
[1727363284154,21.5813,154.68,154.6,6.468]
[1727363284356,21.5813,154.68,154.59,16.1708]
[1727363284357,21.577906,154.67,154.59,16.1708]
[1727363285357,20.0,154.63,154.55,16.1754]
[1727363285538,23.776884,154.64,154.55,16.1754]
[1727363285539,6.4683,154.6,154.55,16.1754]
[1727363285944,1.577906,154.62,154.56,6.4699]
[1727363286240,6.4678,154.61,154.55,22.6457]
[1727363286440,6.4685,154.6,154.55,22.6457]
[1727363286842,23.776884,154.63,154.55,22.6457]
[1727363286843,6.4688,154.59,154.55,16.1754]
[1727363287037,1.577906,154.64,154.57,6.4694]
[1727363287253,20.0,154.65,154.58,6.4691]
[1727363287254,20.0,154.63,154.58,6.4691]
[1727363287462,6.4666,154.64,154.59,6.4686]
[1727363287638,20.0,154.65,154.6,1.29346614]
[1727363287844,20.0,154.65,154.6,6.4682]